bitfinex/quotes_SOLUSD_20251207
["timestamp","ask_amount","ask_price","bid_price","bid_amount"]
[1765145502531,0.9,131.63,131.57,6.5614151]
[1765145502731,0.9,131.63,131.6,6.5614151]
[1765145502732,0.2,131.63,131.6,6.5614151]
[1765145503341,0.2,131.63,131.62,6.5614151]
[1765145503758,0.2,131.63,131.62,15.6014151]
[1765145504055,0.2,131.68,131.63,8.80994492]
[1765145504257,0.2,131.68,131.67,15.37136002]
[1765145504473,0.2,131.7,131.67,15.37136002]
[1765145504474,0.2,131.7,131.69,15.37136002]
[1765145504836,0.2,131.7,131.69,22.96495102]
[1765145505150,0.2,131.74,131.7,8.80994492]
[1765145505351,0.2,131.74,131.73,6.5614151]
[1765145506172,0.2,131.74,131.73,15.37136002]
[1765145506564,0.2,131.74,131.73,6.5614151]
[1765145506744,0.2,131.74,131.73,9.38961405]
[1765145506944,0.2,131.74,131.73,16.98089925]
[1765145507446,0.2,131.74,131.73,25.79084417]
[1765145507651,0.2,131.74,131.73,26.02089925]
[1765145508373,0.2,131.74,131.73,16.98089925]
[1765145508549,0.2,131.74,131.73,26.02089925]
[1765145508745,0.2,131.74,131.73,9.38961405]
[1765145508949,0.2,131.74,131.69,9.04]
[1765145509161,0.2,131.74,131.73,9.38961405]
[1765145510152,0.2,131.74,131.73,16.98089925]
[1765145510366,0.7,131.83,131.74,8.80994492]
[1765145510570,0.7,131.83,131.79,9.38961405]
[1765145510780,0.7,131.83,131.78,9.38961405]
[1765145511080,0.7,131.83,131.73,42.87836221]
[1765145511081,17.67526063,131.83,131.77,9.38961405]
[1765145511255,9.38961405,131.78,131.64,8.80994492]
[1765145511447,0.66,131.82,131.65,10.77958981]
[1765145511644,9.38961405,131.79,131.73,9.38961405]
[1765145511864,9.38961405,131.78,131.72,9.38961405]
[1765145512248,9.38961405,131.75,131.67,7.59463725]
[1765145512472,0.66,131.77,131.6,44.35001413]
[1765145512473,0.66,131.77,131.72,9.38961405]
[1765145512674,10.04961405,131.76,131.7,9.38961405]
[1765145512898,26.56546488,131.75,131.7,9.38961405]
[1765145513106,36.61507893,131.75,131.7,9.38961405]
[1765145513411,0.66,131.74,131.66,9.38961405]
[1765145513701,9.38961405,131.7,131.65,9.38961405]
[1765145513877,9.38961405,131.67,131.55,0.99999999]
[1765145514077,9.38961405,131.59,131.53,9.38961405]
[1765145514279,18.40961405,131.63,131.57,9.38961405]
[1765145514502,9.68,131.68,131.54,9.02]
[1765145514674,0.66,131.67,131.59,8.80994492]
[1765145514877,9.02,131.68,131.64,9.38961405]
[1765145515176,9.02,131.68,131.65,9.38961405]
[1765145515483,0.66,131.7,131.66,9.38961405]
[1765145515686,8.2531401,131.7,131.65,9.38961405]
[1765145515891,10.04961405,131.69,131.63,9.38961405]
[1765145516303,0.66,131.68,131.62,9.38961405]
[1765145516489,9.38961405,131.67,131.61,9.38961405]
[1765145516797,9.38961405,131.67,131.59,27.80806492]
[1765145516798,10.10961405,131.66,131.59,9.38961405]
[1765145517000,10.10961405,131.66,131.58,7.59942786]
[1765145517001,7.59589821,131.65,131.6,9.38961405]
[1765145517180,8.31589821,131.65,131.6,9.38961405]
[1765145517382,0.72,131.64,131.6,9.38961405]
[1765145517683,0.72,131.64,131.59,9.38961405]
[1765145518078,0.72,131.64,131.6,9.38961405]
[1765145518575,9.02,131.67,131.63,9.38961405]
[1765145518775,9.74,131.67,131.62,9.38961405]
[1765145518988,9.74,131.67,131.63,9.38961405]
[1765145519489,9.74,131.71,131.66,9.38961405]
[1765145520007,0.72,131.7,131.67,7.59474443]
[1765145520216,9.02,131.71,131.66,7.59519612]
[1765145520217,17.33255385,131.71,131.66,7.59519612]
[1765145520412,9.74,131.71,131.67,9.38961405]
[1765145520714,9.74,131.71,131.62,16.308864]
[1765145520715,9.38961405,131.68,131.6,7.59835093]
[1765145520882,9.38961405,131.67,131.59,18.99709242]
[1765145521215,9.38961405,131.61,131.48,0.99999999]
[1765145521394,18.40961405,131.65,131.59,9.38961405]
[1765145521591,9.38961405,131.62,131.56,9.38961405]
[1765145521902,16.98914426,131.59,131.53,16.99222269]
[1765145522203,9.38961405,131.56,131.5,16.99366752]
[1765145522404,9.38961405,131.56,131.38,22.87]
[1765145522405,9.38961405,131.54,131.48,9.38961405]
[1765145522606,0.72,131.55,131.46,9.38961405]
[1765145522607,9.38961405,131.52,131.46,9.38961405]
[1765145522835,9.38961405,131.5,131.43,28.41089414]
[1765145523110,9.38961405,131.5,131.45,7.60696861]
[1765145523301,0.72,131.5,131.46,7.60675952]
[1765145523504,0.72,131.54,131.47,9.38961405]
[1765145523811,0.72,131.57,131.52,9.38961405]
[1765145523991,0.72,131.57,131.52,19.0082662]
[1765145524193,9.38961405,131.56,131.45,9.02]
[1765145524391,9.02,131.58,131.53,7.60272681]
[1765145524595,9.38961405,131.54,131.47,9.38961405]
[1765145524807,9.38961405,131.53,131.49,7.60509864]
[1765145525109,9.38961405,131.53,131.46,25.11880892]
[1765145525110,9.38961405,131.5,131.46,7.60679159]
[1765145525332,9.38961405,131.53,131.46,7.60679159]
[1765145525491,9.38961405,131.5,131.45,7.60733319]
[1765145525797,9.02,131.54,131.49,9.38961405]
[1765145525985,9.02,131.54,131.51,16.99359853]
[1765145526193,0.72,131.54,131.5,16.99403701]
[1765145526413,0.72,131.58,131.53,9.38961405]
[1765145526622,0.72,131.58,131.51,8.80994492]
[1765145526623,0.72,131.58,131.55,9.38961405]
[1765145526791,9.38961405,131.57,131.51,9.38961405]
[1765145527115,17.70982911,131.58,131.52,9.38961405]
[1765145527425,0.72,131.57,131.52,9.38961405]
[1765145527602,9.38961405,131.56,131.5,7.60442296]
[1765145528005,8.32177693,131.55,131.5,16.99403701]
[1765145528220,9.38961405,131.52,131.47,7.60583642]
[1765145528525,9.38961405,131.52,131.46,28.40650475]
[1765145528526,0.72,131.52,131.49,7.60502697]
[1765145528712,0.72,131.52,131.49,7.60501587]
[1765145529117,10.10961405,131.52,131.47,7.60582884]
[1765145529510,10.10961405,131.51,131.46,7.60672996]
[1765145529804,10.10961405,131.54,131.47,9.38961405]
[1765145530003,10.10961405,131.54,131.45,9.38961405]
[1765145530004,9.38961405,131.52,131.45,9.38961405]
[1765145530226,9.38961405,131.52,131.46,16.99643869]
[1765145530532,10.10961405,131.51,131.46,7.60682464]
[1765145530697,19.00670131,131.54,131.48,9.38961405]
[1765145530698,7.60282825,131.53,131.48,9.38961405]
[1765145530898,9.38961405,131.52,131.46,7.60682464]
[1765145531164,9.38961405,131.5,131.44,7.60791428]
[1765145531325,10.10961405,131.49,131.44,7.60791428]
[1765145531527,9.38961405,131.45,131.39,9.38961405]
[1765145531915,10.10961405,131.47,131.42,7.60918902]
[1765145532127,0.72,131.47,131.43,16.99822699]
[1765145532307,23.91297885,131.51,131.44,9.38961405]
[1765145532521,19.12961405,131.5,131.43,7.60861294]
[1765145532725,19.12961405,131.5,131.43,16.99822699]
[1765145532957,0.72,131.53,131.48,9.38961405]
[1765145533137,0.72,131.56,131.52,9.38961405]
[1765145533637,0.72,131.56,131.47,25.87943872]
[1765145533638,9.38961405,131.59,131.53,9.38961405]
[1765145533839,9.38961405,131.58,131.52,9.38961405]
[1765145534040,0.72,131.57,131.52,9.38961405]
[1765145534350,0.72,131.57,131.49,9.38961405]
[1765145534351,9.38961405,131.56,131.49,9.38961405]
[1765145534650,9.38961405,131.53,131.47,7.60617559]
[1765145534852,9.38961405,131.53,131.47,16.99578964]
[1765145535029,0.72,131.52,131.47,16.99578964]
[1765145535353,0.72,131.52,131.47,7.60617559]
[1765145535354,10.10961405,131.52,131.47,7.60617559]
[1765145535553,10.10961405,131.52,131.46,9.38961405]
[1765145535752,0.72,131.51,131.46,9.38961405]
[1765145536250,9.38961405,131.5,131.44,7.60803408]
[1765145536457,0.72,131.51,131.45,9.38961405]
[1765145536630,9.0,131.52,131.48,9.38961405]
[1765145536832,0.72,131.51,131.47,9.38961405]
[1765145537133,0.72,131.51,131.46,9.38961405]
[1765145537346,9.38961405,131.47,131.39,7.61082097]
[1765145537549,9.38961405,131.45,131.39,7.61082097]
[1765145537758,9.38961405,131.42,131.35,9.38961405]
[1765145537939,16.308864,131.46,131.33,19.03571178]
[1765145537940,9.38961405,131.4,131.33,19.03571178]
[1765145538130,26.02041091,131.4,131.35,7.61317818]
[1765145538331,10.10961405,131.39,131.34,7.8136466]
[1765145539060,0.72,131.39,131.34,7.8136466]
[1765145539431,10.10961405,131.41,131.35,9.38961405]
[1765145539634,19.10961405,131.41,131.34,26.84821337]
[1765145539837,19.10961405,131.41,131.34,36.23782742]
[1765145540047,10.10961405,131.4,131.34,26.84821337]
[1765145540355,17.72020001,131.4,131.34,26.84821337]
[1765145540734,10.10961405,131.4,131.34,26.84821337]
[1765145541064,17.72008457,131.4,131.34,26.84821337]
[1765145541250,10.06961405,131.39,131.34,26.84821337]
[1765145541432,0.68,131.39,131.34,36.23782742]
[1765145542056,0.68,131.39,131.34,26.84821337]
[1765145542257,0.68,131.39,131.34,36.23782742]
[1765145542666,0.68,131.39,131.34,26.84821337]
[1765145542843,10.84709856,131.38,131.34,0.2]
[1765145543044,0.68,131.37,131.34,7.81358571]
[1765145543845,11.52709856,131.37,131.34,0.2]
[1765145544061,0.68,131.37,131.34,0.2]
[1765145544247,9.0,131.39,131.36,10.84709856]
[1765145544643,0.68,131.38,131.34,7.8136982]
[1765145545742,10.84709856,131.37,131.34,0.2]
[1765145546266,0.68,131.39,131.34,0.2]
[1765145546468,0.68,131.38,131.34,18.66049602]
[1765145546762,10.84709856,131.36,131.34,0.2]
[1765145546968,0.68,131.38,131.34,0.2]
[1765145546969,11.52709856,131.38,131.34,0.2]
[1765145547140,20.50709856,131.37,131.34,0.2]
[1765145547340,10.84709856,131.36,131.34,0.2]
[1765145547541,11.52709856,131.36,131.34,0.2]
[1765145547763,8.98,131.37,131.31,0.1]
[1765145547764,19.1403456,131.35,131.31,0.1]
[1765145547964,10.84709856,131.32,131.31,0.1]
[1765145548165,10.84709856,131.32,131.21,0.2]
[1765145548166,19.82709856,131.32,131.21,0.2]
[1765145548383,20.50709856,131.31,131.24,10.84709856]
[1765145548671,20.50709856,131.31,131.27,7.61772344]
[1765145548837,26.64636466,131.35,131.26,7.61840992]
[1765145549043,10.84709856,131.31,131.26,7.61840992]
[1765145549271,8.98,131.3,131.26,7.61840992]
[1765145549480,9.66,131.3,131.26,7.61840992]
[1765145549661,20.50709856,131.3,131.25,7.61904761]
[1765145549849,28.1234186,131.3,131.25,7.61904761]
[1765145550465,20.50709856,131.3,131.25,7.61904761]
[1765145550657,28.12325282,131.3,131.25,7.61904761]
[1765145550858,0.68,131.29,131.25,7.61904761]
[1765145551054,11.52709856,131.29,131.25,7.61904761]
[1765145551290,10.84709856,131.28,131.23,7.61963382]
[1765145551584,18.46325282,131.3,131.24,18.46645422]
[1765145551762,8.98,131.31,131.28,10.84709856]
[1765145552160,8.98,131.31,131.27,10.84709856]
[1765145552358,0.68,131.37,131.31,8.80994492]
[1765145552563,75.99999999,131.45,131.31,8.80994492]
[1765145552564,0.68,131.39,131.33,10.84709856]
[1765145552875,10.84709856,131.37,131.31,10.84709856]
[1765145553072,10.84709856,131.35,131.28,10.84709856]
[1765145553267,10.84709856,131.35,131.3,10.84709856]
[1765145553268,8.98,131.35,131.3,10.84709856]
[1765145553455,8.98,131.35,131.27,25.51880892]
[1765145553456,8.98,131.36,131.32,10.84709856]
[1765145553879,8.98,131.37,131.33,18.46150501]
[1765145554076,19.02638777,131.4,131.33,18.46150501]
[1765145554077,10.84709856,131.39,131.33,18.46150501]
[1765145554284,11.52709856,131.38,131.33,7.61440645]
[1765145554657,10.84709856,131.4,131.34,10.84709856]
[1765145554858,20.50709856,131.39,131.33,37.49752115]
[1765145555065,20.50709856,131.39,131.33,18.46150501]
[1765145555282,0.68,131.38,131.33,18.46150501]
[1765145556061,10.84709856,131.37,131.32,7.61487192]
[1765145556390,10.84709856,131.36,131.32,7.61478235]
[1765145556760,11.52709856,131.36,131.32,7.61478235]
[1765145556960,19.13877517,131.38,131.33,7.61431965]
[1765145557283,10.84709856,131.34,131.28,19.04193135]
[1765145557500,10.84709856,131.35,131.29,18.46362812]
[1765145557706,8.98,131.33,131.29,7.61652956]
[1765145558104,8.98,131.33,131.29,37.50544394]
[1765145558407,8.98,131.36,131.32,10.84709856]
[1765145558589,10.84709856,131.33,131.26,0.76184671]
[1765145558782,10.84709856,131.31,131.24,19.65704348]
[1765145558981,10.84709856,131.34,131.28,7.61718786]
[1765145559199,10.84709856,131.31,131.26,7.61831618]
[1765145559392,10.84709856,131.31,131.25,29.89429858]
[1765145559715,11.52709856,131.31,131.26,7.61844381]
[1765145559911,11.52709856,131.3,131.23,19.05020275]
[1765145560101,8.98,131.29,131.24,10.84709856]
[1765145560304,27.15596256,131.28,131.21,7.62129581]
[1765145560479,10.84709856,131.22,131.2,0.2]
[1765145560685,10.84709856,131.22,131.07,0.99999999]
[1765145560686,16.308864,131.14,131.02,0.7]
[1765145560888,10.84709856,131.07,131.04,7.63125763]
[1765145561103,19.82709856,131.09,131.04,7.63125763]
[1765145561285,0.68,131.12,131.04,7.63125763]
[1765145561486,0.68,131.15,131.09,10.84709856]
[1765145561688,9.66,131.15,131.09,10.84709856]
[1765145561984,9.66,131.15,131.1,18.47486362]
[1765145562183,0.68,131.15,131.11,10.84709856]
[1765145562410,9.68,131.15,131.11,10.84709856]
[1765145562786,0.68,131.15,131.11,10.84709856]
[1765145562985,9.66,131.15,131.11,10.84709856]
[1765145563605,8.98,131.15,131.11,10.84709856]
[1765145563998,8.98,131.15,131.11,7.62709238]
[1765145564292,8.98,131.15,131.11,18.47419094]
[1765145564489,16.308864,131.21,131.13,10.84709856]
[1765145564808,0.68,131.22,131.11,27.45419094]
[1765145564809,10.84709856,131.18,131.11,27.45419094]
[1765145565117,10.84709856,131.16,131.1,7.62767041]
[1765145565290,19.84709856,131.15,131.08,18.47549844]
[1765145565488,10.84709856,131.11,131.05,10.84709856]
[1765145565689,11.52709856,131.11,131.06,7.63002315]
[1765145565998,10.84709856,131.08,131.03,7.63180801]
[1765145566215,8.98,131.08,131.03,37.55850666]
[1765145566509,7.62485703,131.15,131.07,10.84709856]
[1765145566694,0.68,131.14,131.1,10.84709856]
[1765145566883,0.68,131.17,131.13,10.84709856]
[1765145567092,0.68,131.16,131.12,10.84709856]
[1765145567309,0.68,131.16,131.11,10.84709856]
[1765145567524,0.68,131.16,131.1,10.84709856]
[1765145567815,0.68,131.16,131.06,9.57295422]
[1765145567816,11.52709856,131.16,131.06,9.57295422]
[1765145568016,11.52709856,131.16,131.08,10.84709856]
[1765145568017,18.47262126,131.14,131.08,10.84709856]
[1765145568192,27.45262126,131.14,131.08,10.84709856]
[1765145568386,0.68,131.13,131.08,10.84709856]
[1765145568603,0.68,131.13,131.07,10.84709856]
[1765145568994,10.84709856,131.16,131.09,10.84709856]
[1765145569296,10.84709856,131.14,131.07,10.84709856]
[1765145569495,20.50709856,131.15,131.09,10.84709856]
[1765145569794,0.68,131.14,131.08,10.84709856]
[1765145569997,7.62601998,131.13,131.08,10.84709856]
[1765145570397,0.68,131.13,131.08,18.47556868]
[1765145570616,11.52709856,131.12,131.07,7.62944691]
[1765145570992,0.68,131.12,131.08,7.62860967]
[1765145571424,18.47198692,131.15,131.08,19.17570823]
[1765145571627,20.48709856,131.14,131.07,18.47656609]
[1765145571836,9.64,131.14,131.09,10.84709856]
[1765145571994,0.66,131.13,131.08,10.84709856]
[1765145572334,0.66,131.13,131.03,0.763184]
[1765145572335,16.308864,131.11,131.03,0.763184]
[1765145572553,16.308864,131.11,130.91,3.98441274]
[1765145572554,10.84709856,131.08,131.04,7.6311707]
[1765145572922,10.84709856,131.09,131.05,7.63064112]
[1765145573435,10.84709856,131.08,131.04,7.63114186]
[1765145573633,10.84709856,131.05,130.92,0.7]
[1765145573834,10.84709856,130.98,130.87,0.7]
[1765145574038,10.84709856,130.92,130.88,7.64058679]
[1765145574224,10.84709856,130.95,130.89,10.84709856]
[1765145575041,75.0,131.01,130.88,7.64058679]
[1765145575243,10.84709856,130.95,130.88,18.48768535]
[1765145575429,10.84709856,130.94,130.88,18.48768535]
[1765145575633,10.84709856,130.94,130.88,7.64058679]
[1765145576022,19.88709856,130.95,130.88,18.48768535]
[1765145576249,10.84709856,130.93,130.88,7.64058679]
[1765145576445,16.67665568,130.95,130.88,7.64058679]
[1765145576446,10.84709856,130.92,130.88,7.64058679]
[1765145576648,10.84709856,130.92,130.86,19.10408785]
[1765145577033,35.76791188,130.95,130.86,29.95118641]
[1765145577034,10.84709856,130.93,130.86,29.95118641]
[1765145577553,10.84709856,130.9,130.85,7.6422324]
[1765145577853,10.84709856,130.89,130.85,7.6422324]
[1765145578023,10.84709856,130.9,130.84,0.1]
[1765145578824,10.84709856,130.9,130.84,10.94709856]
[1765145579025,10.84709856,130.9,130.84,0.1]
[1765145579227,10.84709856,130.89,130.84,0.1]
[1765145579433,10.84709856,130.9,130.84,0.1]
[1765145579750,10.84709856,130.9,130.84,10.94709856]
[1765145579945,9.04,130.91,130.84,10.94709856]
[1765145580154,9.04,130.91,130.85,26.74818493]
[1765145580324,9.04,130.91,130.86,10.84709856]
[1765145580528,10.84709856,130.9,130.85,7.64233855]
[1765145580724,10.84709856,130.92,130.85,37.59528349]
[1765145580924,0.66,130.92,130.84,0.1]
[1765145581147,0.66,130.91,130.84,0.1]
[1765145581349,19.88709856,130.92,130.84,26.85016016]
[1765145581650,19.88709856,130.92,130.85,11.54709856]
[1765145582146,10.84709856,130.91,130.86,7.64175454]
[1765145583155,16.67836868,130.92,130.86,11.54709856]
[1765145583156,19.88709856,130.92,130.86,11.54709856]
[1765145583556,19.88709856,130.92,130.86,0.7]
[1765145583784,9.04,130.92,130.86,11.54709856]
[1765145583927,9.04,130.92,130.87,10.84709856]
[1765145584248,9.04,130.92,130.88,7.64058679]
[1765145584626,9.04,130.92,130.87,7.64104366]
[1765145585028,10.84709856,130.94,130.88,11.53709856]
[1765145585230,10.84709856,130.93,130.87,37.5909518]
[1765145585439,18.48433671,130.94,130.87,37.5909518]
[1765145586042,18.48433671,130.94,130.84,16.408864]
[1765145586043,10.84709856,130.88,130.84,0.1]
[1765145586234,10.84709856,130.87,130.84,0.1]
[1765145586430,10.84709856,130.86,130.84,0.1]
[1765145586630,17.90314035,130.88,130.84,0.1]
[1765145586932,10.26227423,130.88,130.84,0.1]
[1765145587258,10.26227423,130.85,130.84,0.1]
[1765145587569,10.26227423,130.85,130.77,0.1]
[1765145587776,10.26227423,130.83,130.77,0.1]
[1765145587966,10.26227423,130.82,130.77,7.74692821]
[1765145588272,10.26227423,130.82,130.77,0.1]
[1765145588666,10.26227423,130.79,130.77,0.1]
[1765145588875,10.26227423,130.78,130.77,0.1]
[1765145589063,10.93227423,130.78,130.77,0.1]
[1765145589244,0.67,130.78,130.77,0.1]
[1765145589449,0.67,130.78,130.71,0.1]
[1765145589450,10.93227423,130.78,130.71,0.1]
[1765145589681,10.26227423,130.74,130.71,0.1]
[1765145589978,19.28227423,130.74,130.71,0.1]
[1765145590175,10.26227423,130.72,130.71,0.1]
[1765145590558,10.93227423,130.72,130.71,0.1]
[1765145590764,9.02,130.72,130.71,0.1]
[1765145591584,10.95946908,130.74,130.71,0.1]
[1765145591746,9.02,130.74,130.71,0.1]
[1765145592152,11.62946908,130.79,130.71,0.79]
[1765145592452,10.95946908,130.73,130.71,0.1]
[1765145592665,9.52,130.74,130.71,0.1]
[1765145592862,9.52,130.74,130.71,7.75042084]
[1765145593179,0.5,130.74,130.73,7.64935362]
[1765145593377,0.5,130.74,130.73,8.33935362]
[1765145593556,10.95946908,130.79,130.73,8.33935362]
[1765145593873,19.99946908,130.8,130.73,19.2988227]
[1765145594078,9.04,130.8,130.74,11.64946908]
[1765145594264,11.62946908,130.81,130.75,7.64818355]
[1765145594265,28.31418516,130.81,130.75,7.64818355]
[1765145594770,9.04,130.81,130.75,10.95946908]
[1765145595078,10.95946908,130.8,130.75,0.69]
[1765145595977,27.64452265,130.81,130.75,0.69]
[1765145596165,10.95946908,130.8,130.75,0.69]
[1765145596365,27.64452265,130.81,130.75,8.33769914]
[1765145596564,9.04,130.81,130.75,38.41762711]
[1765145596764,9.02,130.85,130.77,10.95946908]
[1765145596963,9.02,130.85,130.79,10.95946908]
[1765145597363,9.02,130.85,130.81,10.95946908]
[1765145597590,20.64946908,130.9,130.83,10.95946908]
[1765145597764,28.28901955,130.9,130.83,10.95946908]
[1765145598083,28.28901955,130.9,130.83,0.69]
[1765145598084,10.95946908,130.89,130.83,0.69]
[1765145598258,7.64058679,130.88,130.83,8.33313832]
[1765145598564,10.95946908,130.88,130.82,7.64392407]
[1765145598782,11.62946908,130.89,130.83,7.64348467]
[1765145598965,11.62946908,130.88,130.81,18.60404851]
[1765145599176,10.95946908,130.87,130.81,18.60404851]
[1765145599360,27.26833308,130.87,130.8,8.33472789]
[1765145599566,10.95946908,130.86,130.8,0.69]
[1765145599879,10.95946908,130.85,130.8,0.69]
[1765145600408,7.64292265,130.84,130.8,0.69]
[1765145600956,11.63946908,130.83,130.77,0.68]
[1765145601161,11.63946908,130.83,130.77,8.32656995]
[1765145601594,11.63946908,130.83,130.77,0.68]
[1765145601777,10.95946908,130.82,130.77,0.68]
[1765145601984,26.75022928,130.84,130.78,7.64618087]
[1765145602161,7.64409111,130.82,130.77,0.68]
[1765145602482,7.64409111,130.82,130.77,8.32694919]
[1765145602892,11.63946908,130.81,130.75,7.64775557]
[1765145603082,11.63946908,130.81,130.74,11.63946908]
[1765145603863,18.60356019,130.82,130.75,30.07958679]
[1765145604073,18.60356019,130.82,130.76,7.64744476]
[1765145604489,37.71378798,130.82,130.75,19.28760605]
[1765145604690,9.53257286,130.8,130.74,7.64862978]
[1765145604871,17.17666397,130.82,130.75,36.98116927]
[1765145605073,7.64409111,130.82,130.76,9.53257286]
[1765145605271,17.85625851,130.83,130.77,9.53257286]
[1765145605481,26.1949838,130.85,130.78,9.53257286]
[1765145605792,26.1949838,130.85,130.78,10.21257286]
[1765145605993,9.02,130.85,130.8,9.53257286]
[1765145606306,10.21257286,130.89,130.82,9.53257286]
[1765145606593,9.53257286,130.91,130.84,9.53257286]
[1765145606903,17.1714087,130.91,130.85,9.53257286]
[1765145607110,17.1714087,130.91,130.84,9.53257286]
[1765145607265,9.68,130.92,130.82,0.68]
[1765145607266,9.0,130.92,130.87,9.53257286]
[1765145607614,9.53257286,130.94,130.83,8.80994492]
[1765145607827,9.0,130.96,130.89,9.53257286]
[1765145607980,18.53257286,130.96,130.89,9.53257286]
[1765145608306,9.53257286,130.95,130.9,8.31919037]
[1765145608508,9.73257286,130.99,130.92,9.53257286]
[1765145608713,17.3668456,130.99,130.92,9.53257286]
[1765145609012,0.2,130.99,130.98,9.53257286]
[1765145609408,0.2,130.99,130.98,10.21257286]
[1765145610274,1e-08,130.99,130.98,17.84732625]
[1765145610478,1e-08,130.99,130.98,26.65727117]
[1765145611793,1e-08,130.99,130.98,42.96613517]
[1765145612577,8.30728661,131.11,131.02,16.308864]
[1765145612801,7.62728661,131.11,131.05,9.53257286]
[1765145612980,7.62728661,131.11,131.06,9.53257286]
[1765145613174,0.68,131.1,131.0,0.68]
[1765145613410,9.53257286,131.09,131.02,9.53257286]
[1765145613579,9.53257286,131.09,131.0,0.68]
[1765145613580,7.62728661,131.11,131.05,9.53257286]
[1765145613986,8.30668006,131.12,131.06,9.53257286]
[1765145614193,8.30668006,131.12,131.06,17.16225174]
[1765145614505,17.83925292,131.12,131.05,17.84303173]
[1765145614678,14.91337958,131.12,131.06,14.23677144]
[1765145615512,7.82602502,131.13,131.08,6.60669952]
[1765145615677,7.82602502,131.13,131.06,8.31007192]
[1765145615678,6.60669952,131.12,131.06,7.63007519]
[1765145615879,6.60669952,131.12,131.06,14.23677471]
[1765145616305,7.62718328,131.11,131.06,14.23677471]
[1765145616515,0.88,131.13,131.07,6.60669952]
[1765145616803,7.82633775,131.13,131.09,6.60669952]
[1765145616978,0.2,131.13,131.08,6.60669952]
[1765145617179,0.2,131.13,131.09,6.60669952]
[1765145617599,0.2,131.13,131.09,7.28669952]
[1765145618016,0.2,131.13,131.1,6.60669952]
[1765145618199,0.2,131.13,131.11,6.60669952]
[1765145618405,0.2,131.13,131.11,14.23371907]
[1765145618605,0.2,131.13,131.11,6.60669952]
[1765145618994,0.2,131.13,131.11,14.23353751]
[1765145619200,0.2,131.13,131.09,6.60669952]
[1765145619401,0.2,131.13,131.08,6.60669952]
[1765145619618,7.826473,131.13,131.08,6.60669952]
[1765145619820,7.826473,131.13,131.09,0.68]
[1765145620033,8.506473,131.13,131.07,14.23613194]
[1765145620214,7.28669952,131.12,131.06,14.23672511]
[1765145620410,7.62718328,131.11,131.06,14.23672511]
[1765145620919,7.28669952,131.1,131.03,6.60669952]
[1765145621318,6.60669952,131.08,131.02,7.63232142]
[1765145621517,6.60669952,131.08,131.02,14.23902094]
[1765145621716,27.37514148,131.11,131.04,7.63121935]
[1765145621913,6.60669952,131.09,131.03,14.91849365]
[1765145622233,7.28669952,131.1,131.04,7.63119719]
[1765145622421,0.68,131.09,131.04,7.63119719]
[1765145623404,7.28669952,131.09,131.03,8.31176124]
[1765145623609,0.68,131.09,131.03,14.91846076]
[1765145623828,14.23504548,131.1,131.03,14.91846076]
[1765145624018,7.28669952,131.09,131.03,14.91846076]
[1765145624326,14.23562841,131.08,131.03,7.63176124]
[1765145624522,6.60669952,131.06,131.0,8.31306681]
[1765145624722,6.60669952,131.04,130.98,19.7655381]
[1765145624922,6.60669952,131.05,131.0,7.63344506]
[1765145625126,0.68,131.06,131.0,7.63344506]
[1765145625328,7.28669952,131.07,131.0,7.28669952]
[1765145626316,0.68,131.06,131.0,8.31347938]
[1765145626516,7.28669952,131.06,131.0,14.9201789]
[1765145626716,14.91693676,131.06,131.0,14.9201789]
[1765145626945,9.64,131.09,131.03,6.60669952]
[1765145627252,9.64,131.09,131.01,0.68]
[1765145627253,6.60669952,131.07,131.01,0.68]
[1765145627752,0.68,131.06,131.0,33.32414836]
[1765145628044,7.28669952,131.08,131.01,7.28669952]
[1765145628351,14.91588916,131.08,131.03,7.63184003]
[1765145628722,14.23588916,131.08,131.03,7.63184003]
[1765145629043,14.91588916,131.08,131.03,7.63184003]
[1765145629620,14.91588916,131.08,131.03,8.31184003]
[1765145629829,15.56669952,131.09,131.03,14.91853955]
[1765145630028,6.60669952,131.08,131.03,8.31184003]
[1765145630349,8.96,131.09,131.04,7.28669952]
[1765145630659,8.96,131.09,131.05,7.63067531]
[1765145630868,9.66,131.09,131.05,7.63067531]
[1765145632161,7.30669952,131.08,131.03,7.63141621]
[1765145632527,0.7,131.07,131.03,7.63141621]